bitfinex/quotes_ETHUSD_20250924
["timestamp","ask_amount","ask_price","bid_price","bid_amount"]
[1758686187734,0.001,4158.3,4158.2,14.83064341]
[1758686190470,0.001,4158.3,4158.2,15.06524341]
[1758686190837,0.001,4158.3,4158.2,14.83064341]
[1758686191962,0.001,4158.3,4158.2,15.06524341]
[1758686192158,0.001,4158.3,4158.2,14.83064341]
[1758686192971,0.001,4158.3,4158.2,8.70964341]
[1758686193171,0.7094,4158.3,4158.2,2.52488672]
[1758686193358,0.7094,4158.3,4158.2,6.56388672]
[1758686194238,0.7094,4158.3,4158.2,2.52488672]
[1758686194472,0.7094,4158.3,4158.2,6.24]
[1758686194678,0.7094,4158.3,4158.2,4.159]
[1758686195243,0.7094,4158.3,4158.2,2.52488672]
[1758686195443,0.7094,4158.3,4158.2,0.12]
[1758686195642,0.7094,4158.3,4158.2,4.159]
[1758686196550,0.7094,4158.3,4158.2,0.12]
[1758686196863,0.7094,4158.3,4158.2,4.039]
[1758686197677,1.03281571,4158.3,4157.8,0.12]
[1758686197879,2.40494456,4158.1,4157.3,2.085]
[1758686198077,2.40506024,4157.9,4157.6,0.12]
[1758686198279,0.13430852,4157.8,4157.7,4.039]
[1758686198480,1.56612216,4157.8,4157.6,0.12]
[1758686198645,1.43181364,4157.8,4157.7,4.039]
[1758686199583,1.81550103,4157.8,4157.7,4.039]
[1758686200870,1.81550103,4157.8,4157.3,0.004]
[1758686201073,1.43181364,4157.8,4157.4,2.774]
[1758686201272,0.7084,4157.7,4157.4,2.774]
[1758686201654,0.6792,4157.6,4157.4,2.774]
[1758686201855,0.6792,4157.5,4157.4,2.774]
[1758686202392,0.6792,4157.5,4157.3,0.124]
[1758686202684,1.05998535,4157.5,4157.3,0.124]
[1758686202889,0.4486,4157.4,4157.3,0.004]
[1758686203206,2.85394949,4157.4,4157.3,0.004]
[1758686203352,3.44189755,4157.4,4157.3,0.004]
[1758686204355,3.56528156,4157.4,4157.3,0.004]
[1758686204687,6.56528156,4157.4,4157.3,0.004]
[1758686205022,7.46233453,4157.4,4157.3,0.004]
[1758686205281,7.33895052,4157.4,4157.3,0.004]
[1758686206273,7.11560929,4157.4,4157.3,0.004]
[1758686206473,7.33849184,4157.4,4157.3,0.004]
[1758686207255,7.11534212,4157.4,4157.3,0.004]
[1758686207451,7.11529767,4157.4,4157.3,0.004]
[1758686210477,6.98160246,4157.4,4157.3,0.004]
[1758686210683,7.11516797,4157.4,4157.3,0.004]
[1758686210853,4.70981848,4157.4,4157.3,0.004]
[1758686211058,4.57625297,4157.4,4157.3,0.004]
[1758686211792,5.50180156,4157.4,4157.3,0.004]
[1758686211961,7.90715105,4157.4,4157.3,0.004]
[1758686212592,8.12968686,4157.4,4157.3,0.004]
[1758686214267,8.1296099,4157.4,4157.3,0.004]
[1758686214661,7.90715105,4157.4,4157.3,0.004]
[1758686215283,8.12960324,4157.4,4157.3,0.004]
[1758686215489,7.90715105,4157.4,4157.3,0.004]
[1758686216300,8.12963276,4157.4,4157.3,0.004]
[1758686221093,8.64287601,4157.4,4157.3,0.004]
[1758686223094,7.96367601,4157.4,4157.3,0.004]
[1758686223330,12.4838215,4157.4,4157.3,0.004]
[1758686223535,15.56837099,4157.4,4157.3,0.004]
[1758686223701,19.36037099,4157.4,4157.3,0.004]
[1758686224098,11.86777537,4157.4,4157.3,0.004]
[1758686224300,13.06110255,4157.4,4157.3,0.004]
[1758686224634,19.73859753,4157.4,4157.3,0.004]
[1758686225798,5.14455306,4157.4,4157.3,0.241]
[1758686226128,10.1787224,4157.4,4157.3,0.241]
[1758686226315,10.69284958,4157.4,4157.3,0.241]
[1758686226632,10.69284958,4157.4,4157.3,0.004]
[1758686227650,8.28750009,4157.4,4157.3,0.004]
[1758686227817,4.24750009,4157.4,4157.3,0.004]
[1758686228014,5.39089063,4157.4,4157.3,0.241]
[1758686228232,7.41889751,4157.4,4157.3,0.004]
[1758686230154,8.44149751,4157.4,4157.3,0.004]
[1758686230352,8.89009751,4157.4,4157.3,0.004]
[1758686230855,8.44149751,4157.4,4157.3,0.004]
[1758686231053,9.53473739,4157.4,4157.3,0.004]
[1758686231261,8.89009751,4157.4,4157.3,0.004]
[1758686231564,9.53473739,4157.4,4157.3,0.004]
[1758686232457,9.26742946,4157.4,4157.3,0.004]
[1758686232959,6.18287997,4157.4,4157.3,0.004]
[1758686233144,5.68505945,4157.4,4157.3,0.2299]
[1758686233346,5.03948943,4157.4,4157.3,0.2299]
[1758686233524,5.68505945,4157.4,4157.3,0.2299]
[1758686233858,4.89305945,4157.4,4157.3,0.2299]
[1758686234028,6.27550697,4157.4,4157.3,0.2299]
[1758686234537,6.27550697,4157.4,4157.3,0.004]
[1758686234926,8.26737811,4157.4,4157.3,0.004]
[1758686235138,8.64470845,4157.4,4157.3,0.004]
[1758686235343,8.64470845,4157.4,4157.3,0.2299]
[1758686235344,6.23935896,4157.4,4157.3,0.2299]
[1758686235566,4.24748782,4157.4,4157.3,0.2299]
[1758686236388,4.24748782,4157.4,4157.3,0.6397]
[1758686237145,1.24748782,4157.4,4157.3,0.6397]
[1758686237843,0.87015748,4157.4,4157.3,0.6397]
[1758686238273,0.87015748,4157.4,4157.3,0.2299]
[1758686238445,0.3560303,4157.4,4157.3,0.2299]
[1758686238646,0.3560303,4157.4,4157.3,0.004]
[1758686238980,1.49769092,4157.4,4157.3,0.004]
[1758686239282,1.72579092,4157.4,4157.3,0.004]
[1758686239845,1.49769092,4157.4,4157.3,0.004]
[1758686243310,4.58204041,4157.4,4157.3,0.004]
[1758686243608,11.62204041,4157.4,4157.3,0.004]
[1758686245081,12.41404041,4157.4,4157.3,0.004]
[1758686246394,13.05892152,4157.4,4157.3,0.004]
[1758686246693,12.41404041,4157.4,4157.3,0.004]
[1758686247674,2.40558094,4157.0,4156.9,0.004]
[1758686247927,16.72001079,4157.0,4156.9,0.004]
[1758686248094,17.46223797,4157.0,4156.9,0.004]
[1758686248296,17.83959064,4157.0,4156.9,0.004]
[1758686248510,17.61149064,4157.0,4156.9,0.004]
[1758686248986,17.70798768,4157.0,4156.9,0.004]
[1758686249188,14.78827956,4157.0,4156.9,0.004]
[1758686249491,17.1938605,4157.0,4156.9,0.004]
[1758686249703,17.09736346,4157.0,4156.9,0.004]
[1758686250074,17.61325908,4157.0,4156.9,0.004]
[1758686250934,18.29225908,4157.0,4156.9,0.004]
[1758686252460,18.29225908,4157.0,4156.8,1e-08]
[1758686252461,6.19763881,4156.9,4156.8,1e-08]
[1758686252600,12.8766539,4156.6,4156.5,0.004]
[1758686252795,17.78757982,4156.6,4156.5,0.004]
[1758686253001,18.46657982,4156.6,4156.5,0.004]
[1758686253202,20.83398164,4156.6,4156.5,0.004]
[1758686254230,20.9306426,4156.6,4156.5,0.004]
[1758686254637,20.93133724,4156.6,4156.5,0.004]
[1758686255138,21.30873162,4156.6,4156.5,0.004]
[1758686258728,18.22391918,4156.6,4156.5,0.004]
[1758686258929,0.35687745,4156.6,4156.5,0.2299]
[1758686259121,3.35687745,4156.6,4156.5,0.6397]
[1758686259321,0.134294,4156.6,4156.5,0.6397]
[1758686259731,0.134294,4156.6,4156.5,3.04557032]
[1758686259930,0.134294,4156.6,4156.5,0.2299]
[1758686260241,1.09219306,4156.6,4156.5,0.004]
[1758686260745,1.09219306,4156.6,4156.5,0.2299]
[1758686261037,0.134294,4156.6,4156.5,0.2299]
[1758686261650,0.254294,4156.6,4156.5,0.6397]
[1758686262185,0.12,4156.6,4156.5,0.6397]
[1758686262584,0.12,4156.6,4156.5,3.04557032]
[1758686263552,0.72367366,4157.8,4156.5,0.6397]
[1758686263772,0.1342146,4157.7,4156.8,2.40569668]
[1758686263979,0.001,4157.9,4157.5,2.4052884]
[1758686264180,0.13423485,4157.8,4157.7,2.40517593]
[1758686264353,0.001,4157.9,4157.8,2.40511809]
[1758686264553,0.001,4157.9,4157.8,3.04571809]
[1758686266114,0.001,4157.9,4157.8,0.6406]
[1758686266717,0.001,4157.9,4157.8,3.04571809]
[1758686267103,0.001,4157.9,4157.8,3.06976927]
[1758686269723,0.001,4157.9,4157.8,3.04571809]
[1758686269924,0.001,4157.9,4157.8,9.16571809]
[1758686270917,0.001,4157.9,4157.8,3.04571809]
[1758686271088,0.001,4157.9,4157.8,9.16571809]
[1758686271414,0.001,4157.9,4157.3,2.40538562]
[1758686271415,0.001,4157.9,4157.3,0.4098]
[1758686271615,0.001,4157.9,4157.8,2.40511809]
[1758686272025,0.001,4157.9,4157.8,6.44311809]
[1758686272522,0.001,4157.9,4157.8,6.67391809]
[1758686273499,0.001,4157.9,4157.8,6.79391809]
[1758686276917,0.001,4157.9,4157.8,7.20371809]
[1758686279330,0.001,4157.9,4157.8,4.157]
[1758686279938,0.001,4157.9,4157.8,0.12]
[1758686280121,0.2398,4157.9,4157.1,0.2308]
[1758686280329,0.2398,4157.9,4157.6,0.12]
[1758686280537,0.2388,4157.8,4157.7,1.722]
[1758686280764,0.2388,4157.8,4157.6,0.12]
[1758686280946,0.2388,4157.8,4157.7,4.037]
[1758686282448,0.001,4157.9,4157.6,0.12]
[1758686282655,5.398693,4157.7,4156.9,2.40561694]
[1758686282870,5.398693,4157.7,4157.3,0.12]
[1758686283170,0.2388,4157.6,4157.4,4.036]
[1758686283334,0.001,4157.9,4157.7,2.40516537]
[1758686283539,0.001,4157.9,4157.8,4.036]
[1758686284422,0.001,4157.9,4157.3,0.12]
[1758686284739,0.001,4157.9,4157.4,0.446]
[1758686284740,6.083993,4157.8,4157.4,0.446]
[1758686284936,0.2388,4157.7,4157.4,0.446]
[1758686285129,0.001,4157.9,4157.4,0.446]
[1758686285340,0.001,4157.9,4157.4,3.08213769]
[1758686285537,0.001,4157.9,4157.4,0.6768]
[1758686285928,0.2388,4157.8,4157.5,4.036]
[1758686286123,0.2388,4157.7,4157.5,4.036]
[1758686287067,3.09057656,4157.6,4156.5,2.40986325]
[1758686287266,0.6853,4157.5,4157.1,0.12]
[1758686287426,0.6853,4157.5,4157.2,4.036]
[1758686287632,2.40527656,4157.6,4157.2,4.036]
[1758686287899,0.6853,4157.4,4157.1,0.12]
[1758686288098,3.09065916,4157.4,4157.3,4.036]
[1758686288261,2.40540735,4157.3,4157.2,4.036]
[1758686288463,3.09070735,4157.3,4157.2,4.036]
[1758686290363,0.6853,4157.3,4156.8,0.124]
[1758686290594,5.398693,4157.1,4156.9,0.672]
[1758686290896,8.4895347,4157.1,4156.9,0.672]
[1758686291258,6.083993,4157.1,4156.9,0.672]
[1758686291464,2.40535519,4157.4,4156.9,0.672]
[1758686291805,2.63185519,4157.4,4156.9,0.917]
[1758686291970,3.08665519,4157.4,4156.9,0.672]
[1758686292394,0.2265,4157.4,4156.9,0.672]
[1758686292697,0.6813,4157.4,4156.9,0.672]
[1758686292905,0.49728963,4157.5,4157.0,0.2531558]
[1758686293070,0.49728963,4157.5,4157.1,0.2291]
[1758686293473,2.90259007,4157.5,4157.1,0.2291]
[1758686293821,0.49728963,4157.5,4157.1,0.2291]
[1758686294514,0.49728963,4157.5,4157.0,0.0240558]
[1758686294672,3.12379197,4157.4,4156.9,0.672]
[1758686294995,2.40539197,4157.4,4156.9,0.672]
[1758686295306,0.7184,4157.3,4156.9,0.672]
[1758686297015,0.2463,4157.3,4156.9,0.672]
[1758686298618,0.7184,4157.3,4156.8,0.124]
[1758686298828,8.52260312,4157.2,4156.9,4.036]
[1758686299149,0.7184,4157.1,4156.9,4.036]
[1758686299320,0.7184,4157.0,4156.8,0.004]
[1758686299619,5.398693,4156.9,4156.8,0.004]
[1758686299790,7.80433181,4156.9,4156.8,0.004]
[1758686299984,8.52273181,4156.9,4156.8,0.004]
[1758686300192,9.62755779,4156.9,4156.8,0.004]
[1758686300700,7.22191898,4156.9,4156.8,0.004]
[1758686300895,6.117093,4156.9,4156.8,0.004]
[1758686301222,8.52273181,4156.9,4156.8,0.004]
[1758686301422,8.65678216,4156.9,4156.8,0.004]
[1758686303034,8.8800293,4156.9,4156.8,0.004]
[1758686304602,11.8800293,4156.9,4156.8,0.004]
[1758686304798,13.71218672,4156.9,4156.8,0.004]
[1758686305338,20.41684924,4156.9,4156.8,0.004]
[1758686305634,18.54018672,4156.9,4156.8,0.004]
[1758686305936,19.05407311,4156.9,4156.8,0.004]
[1758686306434,19.43135715,4156.9,4156.8,0.004]
[1758686307239,18.91755879,4156.9,4156.8,0.004]
[1758686307426,19.43132154,4156.9,4156.8,0.004]
[1758686307627,19.05394947,4156.9,4156.8,0.004]
[1758686308317,19.05395303,4156.9,4156.8,0.004]
[1758686311857,18.91725455,4156.9,4156.8,0.004]
[1758686312454,26.10725455,4156.9,4156.8,0.004]
[1758686313426,17.40685455,4156.9,4156.8,0.004]
[1758686314968,18.12525455,4156.9,4156.8,0.004]
[1758686316056,14.88125455,4156.9,4156.8,0.004]
[1758686316356,14.16285455,4156.9,4156.8,0.004]
[1758686316557,14.40915455,4156.9,4156.8,0.004]
[1758686316925,14.88125455,4156.9,4156.8,0.004]
[1758686318931,3.19781244,4156.6,4156.5,0.004]
[1758686319126,6.19787032,4156.5,4156.4,0.004]
[1758686319340,7.78766926,4156.5,4156.4,0.004]
[1758686319541,7.8841833,4156.5,4156.4,0.004]
[1758686320263,7.8844904,4156.5,4156.4,0.004]
[1758686320583,10.07129302,4156.5,4156.4,0.004]
[1758686321949,11.59673698,4156.2,4156.0,0.004]
[1758686322149,16.50544302,4156.2,4156.0,0.004]
[1758686322350,17.32927945,4156.2,4156.0,0.004]
[1758686322574,18.61684594,4156.2,4156.0,0.004]
[1758686322865,21.05968354,4156.2,4156.0,0.004]
[1758686323369,20.61328654,4156.2,4156.0,0.004]
[1758686323745,6.69198307,4156.2,4156.0,0.004]
[1758686323950,3.73472859,4156.2,4156.1,0.2646]
[1758686324157,3.73472859,4156.2,4156.1,0.6744]
[1758686324760,0.37743943,4156.2,4156.1,0.2646]
[1758686324939,0.37743943,4156.2,4156.1,3.08050187]
[1758686326255,0.37743943,4156.2,4156.1,0.6744]
[1758686326775,0.37743943,4156.2,4156.1,3.08050187]
[1758686328072,0.37743943,4156.2,4156.1,0.6744]
[1758686329069,0.37743943,4156.2,4156.1,3.20050187]
[1758686329576,0.37743943,4156.2,4156.1,0.7944]
[1758686329964,0.13411676,4156.7,4156.1,0.7944]
[1758686329965,6.82037625,4156.6,4156.1,0.3846]
[1758686330166,1.42850278,4156.5,4156.1,0.02]
[1758686330348,0.12,4156.5,4156.1,0.02]
[1758686330744,0.12,4156.5,4156.2,0.2446]
[1758686331361,0.12,4156.5,4156.2,2.65060632]
[1758686331947,6.68625949,4156.6,4156.1,0.02]
[1758686332173,0.245,4156.8,4156.1,0.02]
[1758686332174,6.80625949,4156.2,4156.1,0.02]
[1758686332348,0.12,4156.2,4156.1,0.02]
[1758686333056,0.49737203,4156.2,4156.1,0.02]
[1758686333859,2.05288065,4156.2,4156.1,0.02]
[1758686334088,4.45892463,4156.2,4156.1,0.02]
[1758686334270,4.68248347,4156.2,4156.1,0.02]
[1758686337893,7.68248347,4156.2,4156.1,0.02]
[1758686338092,7.82014133,4156.2,4156.1,0.02]
[1758686339377,11.85614133,4156.2,4156.1,0.02]
[1758686339992,11.15314133,4156.2,4156.1,0.02]
[1758686341083,11.53055717,4156.2,4156.1,0.02]
[1758686341471,12.23355717,4156.2,4156.1,0.02]
[1758686342204,9.12451319,4156.2,4156.1,0.02]
[1758686342391,8.6094833,4156.2,4156.1,0.024]
[1758686343002,11.01552728,4156.2,4156.1,0.024]
[1758686343808,8.6094833,4156.2,4156.1,0.024]
[1758686343972,7.89112015,4156.2,4156.1,0.024]
[1758686344175,7.89112015,4156.2,4156.1,0.2686]
[1758686344376,0.85512015,4156.2,4156.1,0.2686]
[1758686344908,0.85512015,4156.2,4156.1,0.6784]
[1758686345307,0.85512015,4156.2,4156.1,0.024]
[1758686345476,0.49741584,4156.2,4156.1,0.6784]
[1758686346306,0.49741584,4156.2,4156.1,0.2686]
[1758686347474,0.49741584,4156.2,4156.1,0.6784]
[1758686347711,0.72094567,4156.2,4156.1,0.6784]
[1758686347888,0.34352983,4156.2,4156.1,0.2686]
[1758686348106,0.12,4156.2,4156.1,0.2686]
[1758686348603,0.34352493,4156.2,4156.1,0.024]
[1758686349124,7.16389977,4156.2,4156.1,0.024]
[1758686350196,0.47764028,4156.2,4156.1,0.024]
[1758686350399,0.47764028,4156.2,4156.1,0.2686]
[1758686350800,0.34352493,4156.2,4156.1,0.024]
[1758686351794,0.34351422,4156.2,4156.1,0.024]
[1758686352005,0.34351415,4156.2,4156.1,0.024]
[1758686352499,0.72090269,4156.2,4156.1,0.024]
[1758686353514,0.85506909,4156.2,4156.1,0.024]
[1758686354415,1.09156909,4156.2,4156.1,0.024]
[1758686355128,3.26111307,4156.2,4156.1,0.024]
[1758686355315,3.94251307,4156.2,4156.1,0.024]
[1758686355720,0.85506909,4156.2,4156.1,0.024]
[1758686355930,0.85520561,4156.2,4156.1,0.024]
[1758686356113,1.09170561,4156.2,4156.1,0.024]
[1758686356496,1.53660561,4156.2,4156.1,0.024]
[1758686357014,0.85520561,4156.2,4156.1,0.024]
[1758686359648,0.37738854,4156.2,4156.1,3.09156288]
[1758686359807,0.001,4156.3,4156.2,2.40604398]
[1758686360003,0.001,4156.3,4156.2,7.07844398]
[1758686360247,0.001,4156.3,4156.2,9.16044398]
[1758686365902,0.001,4156.3,4156.2,2.40604398]
[1758686366108,0.001,4156.3,4156.2,6.66864398]
[1758686367257,0.37830821,4156.3,4156.2,6.44104398]
[1758686367553,0.37830821,4156.3,4156.2,6.66864398]
[1758686367905,0.001,4156.3,4156.2,6.66864398]
[1758686369716,0.001,4156.3,4156.2,6.78764398]
[1758686370418,0.001,4156.3,4156.2,0.12]
[1758686370647,0.001,4156.3,4156.2,4.154]
[1758686370648,0.6824,4156.3,4156.2,4.154]
[1758686371169,1.05974153,4156.3,4156.2,4.154]
[1758686372036,0.37834153,4156.3,4156.2,6.56004398]
[1758686372238,0.37834153,4156.3,4156.2,6.78764398]
[1758686376336,0.37834153,4156.3,4156.2,6.56004398]
[1758686376539,0.37834153,4156.3,4156.2,6.78764398]
[1758686377068,0.37834153,4156.3,4156.2,6.56004398]
[1758686378085,0.001,4156.3,4156.2,6.56004398]
[1758686379257,0.001,4156.3,4156.2,2.52604398]
[1758686379457,0.001,4156.3,4156.2,6.56004398]
[1758686379962,0.001,4156.3,4156.2,2.52604398]
[1758686380286,0.001,4156.3,4156.2,6.56004398]
[1758686382705,0.37832445,4156.3,4156.2,6.56004398]
[1758686382886,0.37832445,4156.3,4156.2,7.20584398]
[1758686383072,0.37832445,4156.3,4156.2,6.79604398]
[1758686383596,0.37832445,4156.3,4156.2,6.79504398]
[1758686384286,0.37832445,4156.3,4156.2,6.55904398]
[1758686384491,0.37832445,4156.3,4156.2,4.153]
[1758686384803,0.37832445,4156.3,4156.2,6.55904398]
[1758686385008,0.37832445,4156.3,4156.2,0.12]
[1758686385009,1.06792445,4156.3,4156.2,0.12]
[1758686385309,1.06792445,4156.3,4156.2,1.533]
[1758686385461,1.06792445,4156.3,4156.1,0.024]
[1758686385674,0.61962445,4156.3,4156.2,4.033]
[1758686386271,1.06792445,4156.3,4156.2,4.033]
[1758686387399,1.06792445,4156.3,4156.1,0.024]
[1758686387599,0.61962445,4156.3,4156.2,4.033]
[1758686388193,1.06792445,4156.3,4156.2,4.033]
[1758686389209,0.37832445,4156.3,4156.2,4.033]
[1758686389583,0.37832445,4156.3,4156.1,0.024]
[1758686389783,1.06792445,4156.3,4156.2,4.033]
[1758686390199,0.37832445,4156.3,4156.2,6.43904398]
[1758686390580,0.37832445,4156.3,4156.2,4.033]
[1758686390782,0.2423,4156.3,4156.2,4.033]
[1758686391099,0.6906,4156.3,4156.2,4.033]
[1758686391305,0.6906,4156.3,4156.2,6.43904398]
[1758686391510,0.2423,4156.3,4156.2,6.43904398]
[1758686391697,0.2423,4156.3,4156.2,4.033]
[1758686392008,0.2423,4156.3,4156.2,6.43904398]
[1758686392571,0.6906,4156.3,4156.1,0.024]
[1758686392805,0.6906,4156.3,4156.2,4.033]
[1758686392806,0.2423,4156.3,4156.2,4.033]
[1758686393405,0.6906,4156.3,4156.2,4.033]
[1758686393798,1.06794903,4156.3,4156.2,4.033]
[1758686393987,6.46679724,4156.3,4156.2,4.033]
[1758686394316,6.69063129,4156.3,4156.2,4.033]
[1758686394980,6.46679724,4156.3,4156.2,2.40604398]
[1758686395185,6.46679724,4156.3,4156.2,6.43904398]
[1758686395616,6.01849724,4156.3,4156.2,4.033]
[1758686396004,6.24234937,4156.3,4156.2,4.033]
[1758686396185,6.24234937,4156.3,4156.2,6.43904398]
[1758686396387,0.37834903,4156.3,4156.2,6.43904398]
[1758686398983,0.84355538,4156.3,4156.2,4.033]
[1758686399227,1.29185538,4156.3,4156.2,4.033]
[1758686399711,0.91450635,4156.3,4156.2,4.033]
[1758686400322,0.91450635,4156.3,4156.1,0.024]
[1758686400525,0.2423,4156.3,4156.2,4.033]
[1758686400735,0.60050885,4156.3,4156.2,4.033]
[1758686400941,0.60050885,4156.3,4156.2,4.032]
[1758686401125,1.04880885,4156.3,4156.2,4.032]
[1758686401542,6.44765706,4156.3,4156.2,4.032]
[1758686401744,7.3450114,4156.3,4156.1,0.024]
[1758686402043,0.35820885,4156.2,4156.1,4.056]
[1758686402217,5.99835706,4156.2,4156.1,4.056]
[1758686402545,6.37572449,4156.2,4156.1,4.056]
[1758686402744,0.37736743,4156.2,4156.1,6.72216288]
[1758686402906,0.37736743,4156.2,4156.1,7.22790187]
[1758686403443,0.37736743,4156.2,4156.1,0.144]
[1758686403641,1.06696743,4156.2,4156.1,0.512]
[1758686403846,0.51158627,4156.2,4156.1,0.512]
[1758686404154,0.37736743,4156.2,4156.1,0.632]
[1758686404654,4.12606297,4156.2,4156.1,0.024]
[1758686404952,4.26027825,4156.2,4156.1,0.024]
[1758686406209,1.85423427,4156.2,4156.1,0.024]
[1758686406851,1.16463427,4156.2,4156.1,0.024]
[1758686407044,0.13421528,4156.2,4156.1,0.024]
[1758686407612,0.82381528,4156.2,4156.1,0.024]
[1758686407807,0.13421528,4156.2,4156.1,0.024]
[1758686408014,0.82381528,4156.2,4156.1,0.024]
[1758686409127,0.37551528,4156.2,4156.1,0.024]
[1758686409463,4.10481816,4156.2,4156.1,0.024]
[1758686411143,4.99749661,4156.2,4156.1,0.024]
[1758686411664,5.19627784,4156.2,4156.1,0.024]
[1758686411909,5.1963304,4156.2,4156.1,0.024]
[1758686412451,9.02949661,4156.2,4156.1,0.024]
[1758686412644,9.22827875,4156.2,4156.1,0.024]
[1758686412842,6.62295263,4156.2,4156.1,0.024]
[1758686413029,13.91436978,4156.2,4156.1,0.024]
[1758686413232,14.42973311,4156.2,4156.1,0.024]
[1758686414263,14.4296901,4156.2,4156.1,0.024]
[1758686414648,15.42044649,4156.2,4156.1,0.024]
[1758686414851,0.792,4155.9,4155.1,0.02]
[1758686415061,7.80518167,4155.7,4155.1,0.02]
[1758686415376,8.65347366,4155.7,4155.1,0.02]
[1758686415574,2.40644928,4155.5,4155.1,0.02]
[1758686415785,17.37041889,4155.4,4155.1,0.02]
[1758686415993,13.181791,4155.4,4155.1,0.02]
[1758686416155,15.01899546,4155.4,4155.1,0.02]
[1758686416350,2.5265651,4155.3,4155.1,0.02]
[1758686416650,2.40662302,4155.2,4155.1,0.02]
[1758686416963,7.46624523,4155.2,4155.1,0.02]
[1758686417170,2.40679679,4154.9,4154.8,0.004]
[1758686417469,13.01062231,4154.9,4154.8,0.004]
[1758686417663,13.70552231,4154.9,4154.8,0.004]
[1758686418482,14.49752231,4154.9,4154.8,0.004]
[1758686418888,17.49752231,4154.9,4154.8,0.004]
[1758686419403,17.49752231,4154.9,4154.4,0.004]
[1758686419404,2.40702852,4154.5,4154.4,0.004]
[1758686419694,2.52708646,4154.4,4154.3,0.004]
[1758686419891,2.52708646,4154.4,4154.1,0.02]
[1758686419892,0.792,4154.3,4154.1,0.02]
[1758686420197,11.97326583,4154.2,4154.1,0.02]
[1758686420492,2.40731824,4154.0,4153.9,0.004]
[1758686420660,8.63479637,4154.0,4153.9,0.004]
[1758686420860,9.32969637,4154.0,4153.9,0.004]
[1758686421090,9.70731987,4154.0,4153.9,0.004]
[1758686421296,13.49931987,4154.0,4153.9,0.004]
[1758686421481,13.49853502,4154.0,4153.9,0.004]
[1758686421659,13.36510459,4154.0,4153.9,0.004]
[1758686421859,13.49853494,4154.0,4153.9,0.004]
[1758686422603,13.49853494,4154.0,4153.4,0.004]
[1758686422604,0.792,4153.6,4153.4,0.004]
[1758686422813,15.1594089,4153.5,4153.4,0.004]
[1758686422964,9.76056069,4153.5,4153.4,0.004]
[1758686423172,10.45546069,4153.5,4153.4,0.004]
[1758686423379,10.55203507,4153.5,4153.4,0.004]
[1758686423612,8.5220756,4153.5,4153.4,0.004]
[1758686423814,7.8271756,4153.5,4153.4,0.004]
[1758686424180,7.73060122,4153.5,4153.4,0.004]
[1758686424874,0.37764857,4153.5,4153.4,0.004]
[1758686425087,0.37764857,4153.5,4153.4,0.64]
[1758686425410,0.37764857,4153.5,4153.4,3.047666]
[1758686425907,0.37764857,4153.5,4153.4,0.64]
[1758686426409,0.37764857,4153.5,4153.4,3.047666]
[1758686426707,0.37764857,4153.5,4153.4,0.64]
[1758686427274,0.37764857,4153.5,4153.4,3.047666]
[1758686428790,5.51884821,4153.9,4153.5,2.40757465]
[1758686429224,5.51884821,4153.9,4153.6,0.636]
[1758686429513,5.51884821,4153.9,4153.7,0.2262]
[1758686429677,4.034,4154.3,4153.8,3.06750849]
[1758686429882,5.51884821,4154.2,4153.9,0.636]
[1758686430108,5.51884821,4154.2,4154.0,0.2262]
[1758686430305,5.51884821,4154.2,4154.1,0.2262]
[1758686431180,7.92605055,4154.2,4154.1,0.2262]
[1758686431417,5.51884821,4154.2,4153.8,0.2262]
[1758686431586,2.40744088,4153.8,4153.5,0.12]
[1758686432099,7.80639828,4153.6,4153.4,0.004]
[1758686432294,5.39884821,4153.6,4153.4,0.004]
[1758686432885,7.80645059,4153.6,4153.4,0.004]
[1758686433315,5.39884821,4153.6,4153.4,0.004]
[1758686433517,8.18399717,4153.6,4153.4,0.004]
[1758686434017,2.40760804,4153.5,4153.4,0.004]
[1758686435033,5.7764391,4153.6,4153.4,0.004]
[1758686435194,2.40760804,4153.5,4153.4,0.004]
[1758686435398,5.7764391,4153.6,4153.4,0.004]
[1758686435399,0.37759089,4153.6,4153.4,0.004]
[1758686435587,0.37759089,4153.6,4153.4,0.66407666]
[1758686435787,0.37759089,4153.6,4153.5,0.756]
[1758686436987,0.37759089,4153.6,4153.4,0.004]
[1758686437325,0.37759089,4153.6,4153.5,0.636]
[1758686437527,0.37759089,4153.6,4153.4,0.004]
[1758686437830,2.40760804,4153.5,4153.4,0.004]
[1758686438002,2.40756446,4153.6,4153.4,0.004]
[1758686438404,0.12,4153.9,4153.4,0.004]
[1758686438612,5.39884821,4153.8,4153.5,0.2262]
[1758686439218,2.40751608,4153.7,4153.4,0.004]
[1758686439616,5.39884821,4153.8,4153.4,0.004]
[1758686439941,7.806331,4153.8,4153.4,0.2302]
[1758686440159,0.6949,4154.4,4153.4,0.004]
[1758686440430,5.39884821,4153.5,4153.4,0.004]
[1758686440851,0.12,4153.9,4153.4,0.25427666]
[1758686441009,0.12,4153.9,4153.5,0.2262]
[1758686441010,5.51884821,4153.9,4153.5,0.2262]
[1758686441338,0.37757825,4153.8,4153.6,0.2502755]
[1758686441646,1.04297825,4153.8,4153.4,0.004]
[1758686441799,5.39884821,4153.6,4153.4,0.004]
[1758686442498,5.39884821,4153.6,4153.4,0.2431]
[1758686442706,5.39884821,4153.6,4153.5,0.2391]
[1758686443030,5.39884821,4153.6,4153.4,0.004]
[1758686443611,0.37757825,4153.8,4153.5,0.2391]
[1758686443811,0.37757825,4153.8,4153.6,0.2391]